bitfinex/quotes_ETHUSD_20260306
["timestamp","ask_amount","ask_price","bid_price","bid_amount"]
[1772830329512,1.40447696,1978.9,1978.5,0.0011]
[1772830329711,1.40447696,1978.9,1978.3,0.0011]
[1772830331104,1.05447696,1978.9,1978.3,0.0011]
[1772830331623,1.40447696,1978.7,1978.3,0.0011]
[1772830333318,1.26339195,1978.8,1978.3,0.0011]
[1772830333526,1.26339195,1978.8,1978.4,0.001]
[1772830334029,2.66785716,1978.9,1978.4,0.001]
[1772830334233,6.45772168,1979.1,1978.4,1.30605049]
[1772830334412,1.2631878,1979.2,1978.4,1.30605049]
[1772830334818,1.26303362,1979.4,1978.5,1.30505049]
[1772830335017,0.002,1979.5,1978.5,1.30505049]
[1772830335215,0.002,1979.6,1978.5,1.30505049]
[1772830335649,5.05303401,1979.8,1978.6,0.14948499]
[1772830335650,0.002,1979.8,1978.6,0.14948499]
[1772830335851,0.002,1979.8,1978.9,1.30505049]
[1772830336029,0.002,1979.8,1979.1,1.30505049]
[1772830336331,1.26357758,1980.1,1979.1,1.30505049]
[1772830338239,0.001,1980.1,1979.3,1.30505049]
[1772830340278,1.40647696,1980.0,1979.2,5.05253865]
[1772830340476,1.40647696,1980.0,1979.1,1.30505049]
[1772830340765,1.40447696,1979.8,1978.9,2.56837747]
[1772830341676,1.40447696,1979.8,1978.9,2.56837002]
[1772830342353,1.40447696,1979.8,1979.0,1.30505049]
[1772830342354,1.26281759,1979.7,1979.0,1.30505049]
[1772830342666,6.45574735,1979.8,1979.0,1.30505049]
[1772830342667,1.26279011,1979.8,1979.0,1.30505049]
[1772830343575,2.66726707,1979.8,1979.0,1.30505049]
[1772830344644,1.40447696,1979.7,1978.9,1.26331301]
[1772830344838,1.40447696,1979.7,1978.9,2.5683635]
[1772830345044,1.40447696,1979.7,1979.0,1.30505049]
[1772830345466,1.40447696,1979.7,1978.7,1.30505049]
[1772830345674,1.40447696,1979.7,1978.7,2.56850309]
[1772830346069,1.40447696,1979.7,1979.0,0.001]
[1772830346661,1.40447696,1979.5,1978.8,0.001]
[1772830347692,1.40447696,1979.5,1978.8,1.30605049]
[1772830348669,1.26300899,1979.4,1978.9,2.5683786]
[1772830348893,2.66729455,1979.7,1979.0,1.30505049]
[1772830349192,1.26281759,1979.7,1979.0,1.30505049]
[1772830349387,1.40447696,1979.6,1978.8,1.30605049]
[1772830349703,1.40447696,1979.6,1978.8,2.56938808]
[1772830350207,1.40447696,1979.6,1978.8,1.30605049]
[1772830350493,1.40447696,1979.5,1978.8,0.001]
[1772830350795,1.40447696,1979.3,1978.6,1.62706506]
[1772830351399,2.43847626,1979.3,1978.6,1.62706506]
[1772830351690,1.40447696,1979.2,1978.6,1.62706506]
[1772830352095,1.40447696,1979.2,1978.4,0.001]
[1772830352597,1.26320044,1979.1,1978.4,0.001]
[1772830352791,1.26320044,1979.1,1978.4,1.36165453]
[1772830353293,1.34091014,1979.0,1978.4,0.001]
[1772830354821,1.26332811,1978.9,1978.4,0.001]
[1772830355520,1.26332811,1978.9,1978.4,1.36165453]
[1772830356500,1.26332811,1978.9,1978.4,0.001]
[1772830357195,5.05331244,1979.0,1978.4,1.36165453]
[1772830357399,1.26326427,1979.0,1978.4,1.36165453]
[1772830358030,1.26326427,1979.0,1978.5,0.0011]
[1772830358334,0.001,1978.9,1978.5,1.36175453]
[1772830358490,1.26313662,1979.2,1978.6,1.36065453]
[1772830359886,1.26313662,1979.2,1978.6,2.62416788]
[1772830360316,2.60404676,1979.2,1978.6,1.36065453]
[1772830361300,5.05254648,1979.3,1978.7,1.36065453]
[1772830361301,1.26311748,1979.3,1978.7,1.36065453]
[1772830361621,2.60397141,1979.4,1978.7,1.36065453]
[1772830361828,1.34091014,1979.3,1978.7,1.36065453]
[1772830362029,1.34091014,1979.3,1978.5,2.62530944]
[1772830362430,1.34091014,1979.3,1978.5,2.62532868]
[1772830363412,1.34091014,1979.3,1978.6,1.36065453]
[1772830363942,2.60402024,1979.3,1978.7,1.2634558]
[1772830364106,1.2631101,1979.3,1978.8,1.36065453]
[1772830366845,1.34091014,1979.3,1978.6,1.36065453]
[1772830367135,1.34091014,1979.3,1978.6,2.62416252]
[1772830367335,1.34091014,1979.3,1978.6,1.36065453]
[1772830367832,1.34091014,1979.3,1978.6,2.62417039]
[1772830369035,1.26313662,1979.2,1978.7,1.36065453]
[1772830370256,0.001,1979.1,1978.7,1.36065453]
[1772830370861,0.001,1979.1,1978.5,1.26464185]
[1772830371056,0.001,1979.1,1978.6,1.36065453]
[1772830371449,0.001,1979.1,1978.5,1.26467674]
[1772830371450,1.34191014,1979.1,1978.5,1.26467674]
[1772830371650,1.34191014,1979.1,1978.5,0.0011]
[1772830372360,1.34191014,1979.1,1978.5,1.36175453]
[1772830372554,0.001,1979.1,1978.6,1.36065453]
[1772830373765,0.001,1979.1,1978.7,1.36065453]
[1772830374337,0.001,1979.1,1978.5,2.62530938]
[1772830374636,1.34191014,1979.1,1978.5,2.62530938]
[1772830375249,0.001,1979.1,1978.6,1.36065453]
[1772830376364,0.001,1979.1,1978.6,1.3038485]
[1772830377542,0.001,1979.1,1978.7,1.29068852]
[1772830379663,0.001,1979.1,1978.7,1.26339479]
[1772830379872,7.88558671,1980.0,1978.9,1.29068852]
[1772830379873,1.26298608,1979.5,1978.9,1.29068852]
[1772830380260,1.29543371,1979.5,1978.6,1.29068852]
[1772830380435,5.05162506,1979.6,1978.7,1.29068852]
[1772830380754,1.29543371,1979.5,1978.7,1.29068852]
[1772830381572,1.29543371,1979.5,1978.8,0.0011]
[1772830381869,1.29643371,1979.5,1978.8,0.0011]
[1772830382443,2.53795532,1979.4,1978.8,1.26449195]
[1772830382643,2.53795532,1979.4,1978.9,1.3140155]
[1772830383169,1.26300899,1979.4,1978.9,1.3140155]
[1772830384484,1.26399582,1979.5,1978.9,1.3140155]
[1772830385381,1.26399582,1979.5,1978.9,1.26326897]
[1772830385586,1.26399582,1979.5,1979.0,1.3140155]
[1772830387493,0.001,1979.5,1979.0,1.26321529]
[1772830387782,0.001,1979.5,1979.1,1.3140155]
[1772830387991,0.052,1979.5,1979.1,1.3140155]
[1772830389587,1.26300899,1979.4,1978.9,2.5772973]
[1772830390177,1.26300899,1979.4,1978.9,1.3140155]
[1772830390480,1.31494518,1979.5,1979.0,1.3140155]
[1772830391287,1.27494633,1979.4,1978.8,2.57850609]
[1772830391909,7.48971742,1979.8,1979.0,1.3140155]
[1772830391910,1.27494633,1979.8,1979.0,1.3140155]
[1772830392081,2.53770014,1979.8,1979.2,1.3140155]
[1772830392487,1.27494633,1979.7,1979.2,1.3140155]
[1772830393104,1.27494633,1979.7,1979.0,2.5870155]
[1772830393276,1.27494633,1979.7,1979.1,1.3140155]
[1772830393477,1.26275381,1979.8,1979.1,1.3140155]
[1772830393891,0.001,1979.3,1979.2,2.57715212]
[1772830394089,1.27694633,1979.9,1979.3,1.3140155]
[1772830394289,0.002,1979.9,1979.3,1.3140155]
[1772830394694,0.001,1980.1,1979.3,1.3140155]
[1772830395880,0.001,1980.1,1979.5,1.3140155]
[1772830396080,0.002,1980.3,1979.7,1.3140155]
[1772830398000,0.002,1980.3,1979.8,1.26275381]
[1772830398214,0.002,1980.3,1979.9,1.3140155]
[1772830400201,0.002,1980.3,1979.9,2.57666567]
[1772830400721,0.002,1980.3,1980.0,1.3140155]
[1772830401026,2.53715058,1980.7,1980.0,1.3140155]
[1772830401424,2.53715058,1980.7,1979.9,1.26265017]
[1772830401425,1.27494633,1980.9,1980.2,1.3140155]
[1772830402809,2.53706264,1980.8,1980.2,1.3140155]
[1772830403639,1.27494633,1980.7,1979.8,3.85073185]
[1772830404322,1.27494633,1980.7,1979.9,1.3140155]
[1772830404915,1.27494633,1980.5,1979.9,1.3140155]
[1772830405251,1.27494633,1980.5,1979.9,2.57670094]
[1772830405425,1.27494633,1980.5,1979.9,1.3140155]
[1772830405815,1.27494633,1980.5,1979.7,1.3140155]
[1772830406016,1.27494633,1980.5,1980.0,0.001]
[1772830406440,1.27494633,1980.5,1979.9,0.001]
[1772830406823,1.27494633,1980.5,1979.3,1.3140155]
[1772830406824,1.27494633,1980.3,1979.3,1.3140155]
[1772830407517,1.27494633,1980.3,1979.3,2.57708217]
[1772830407846,1.27494633,1980.3,1979.3,2.57708739]
[1772830409027,1.26249873,1980.2,1979.3,2.57708739]
[1772830409229,1.27494633,1980.1,1979.3,2.57708739]
[1772830409649,1.27494633,1980.1,1979.3,1.3140155]
[1772830410016,1.27494633,1980.1,1979.3,2.57708399]
[1772830410553,1.27494633,1980.1,1979.3,1.3140155]
[1772830410851,1.27494633,1980.1,1979.1,1.3140155]
[1772830411150,1.26275381,1979.8,1978.9,2.57840844]
[1772830411355,1.27494633,1979.7,1978.9,2.57840844]
[1772830411653,1.27494633,1979.7,1978.9,1.3151155]
[1772830411846,1.27494633,1979.7,1978.9,2.57842806]
[1772830412051,1.27494633,1979.7,1979.0,1.27169173]
[1772830413246,1.26288139,1979.6,1979.1,1.27169173]
[1772830414649,1.26288139,1979.6,1979.0,1.2632198]
[1772830414650,2.56871954,1979.6,1979.0,1.2632198]
[1772830415025,2.56871954,1979.6,1979.0,2.53491153]
[1772830415219,1.30583815,1979.5,1978.9,0.0011]
[1772830417134,1.30583815,1979.5,1978.7,0.0011]
[1772830417454,1.30583815,1979.3,1978.6,0.0011]
[1772830418534,1.30583815,1979.3,1979.2,0.001]
[1772830418860,1.30583815,1979.3,1978.6,0.0011]
[1772830419034,1.30583815,1979.3,1979.0,0.001]
[1772830419440,1.30583815,1979.1,1978.6,0.0011]
[1772830419646,1.30583815,1979.1,1978.9,0.001]
[1772830419844,1.30583815,1979.1,1978.6,0.0011]
[1772830421567,1.30583815,1978.9,1978.6,0.0011]
[1772830423773,1.26339195,1978.8,1978.6,0.0011]
[1772830424362,2.5692301,1978.8,1978.6,0.0011]
[1772830425477,1.30583815,1978.7,1978.4,0.001]
[1772830425972,2.56933462,1978.7,1978.4,0.001]
[1772830426154,1.30583815,1978.6,1978.2,0.0011]
[1772830427071,1.30583815,1978.5,1978.2,0.0011]
[1772830427960,1.26364739,1978.4,1978.2,0.0011]
[1772830430261,2.56948554,1978.4,1978.2,0.0011]
[1772830431160,2.56948554,1978.4,1978.3,0.0011]
[1772830433978,1.30583815,1978.3,1978.0,0.0011]
[1772830434849,1.26377514,1978.2,1978.0,0.0011]
[1772830435056,1.26375002,1978.3,1978.0,1.27279173]
[1772830435263,1.30583815,1978.2,1978.0,0.0011]
[1772830436066,1.32437646,1978.1,1977.7,0.0011]
[1772830438562,1.26390293,1978.0,1977.7,0.0011]
[1772830440079,1.26390293,1978.0,1977.7,1.25115503]
[1772830440586,2.83680742,1978.2,1977.8,1.25115503]
[1772830440886,4.16118388,1978.2,1977.8,1.25115503]
[1772830441585,4.16118388,1978.2,1977.8,0.0011]
[1772830441882,4.16120606,1978.2,1977.8,1.24184213]
[1772830442259,4.16120606,1978.2,1977.8,2.5058727]
[1772830442455,2.78364494,1978.4,1977.9,1.24074213]
[1772830442677,2.78364494,1978.4,1978.0,2.50464506]
[1772830443083,0.001,1978.3,1978.0,1.24074213]
[1772830443264,0.001,1978.3,1977.9,1.24184213]
[1772830444104,0.001,1978.3,1977.9,2.50580762]
[1772830444585,0.001,1978.3,1978.0,1.24074213]
[1772830445500,0.001,1978.3,1977.9,0.0011]
[1772830445901,0.001,1978.3,1977.9,2.50580803]
[1772830446558,0.001,1978.3,1977.9,1.24184213]
[1772830449060,0.001,1978.3,1978.1,1.24074213]
[1772830449868,1.24590549,1979.1,1978.0,1.24074213]
[1772830450464,1.24590549,1979.2,1978.2,1.24074213]
[1772830450857,1.24590549,1979.0,1978.3,2.50445339]
[1772830451290,1.24590549,1979.0,1978.4,1.24074213]
[1772830452889,2.5092336,1978.9,1978.4,2.5043708]
[1772830454186,2.5092336,1978.9,1978.4,1.24074213]
[1772830454402,2.5092336,1978.9,1978.4,2.50438453]
[1772830454568,1.24590549,1979.3,1978.5,1.24074213]
[1772830455091,1.26313662,1979.2,1978.6,2.50426179]
[1772830455265,1.26313662,1979.2,1978.7,1.24074213]
[1772830455978,0.001,1978.9,1978.7,1.24074213]
[1772830456283,0.001,1978.9,1978.6,1.26351966]
[1772830456284,0.002,1979.9,1979.0,1.24074213]
[1772830456491,1.26276117,1979.8,1979.0,1.24074213]
[1772830456688,1.26473953,1979.9,1979.0,1.24074213]
[1772830457400,1.26473953,1979.9,1979.2,1.24074213]
[1772830458789,0.002,1979.9,1979.2,1.24074213]
[1772830459389,0.002,1979.9,1979.3,1.2630728]
[1772830459593,0.002,1979.9,1979.3,2.50381493]
[1772830460322,1.24590549,1979.8,1979.3,1.2630728]
[1772830463813,1.24590549,1979.8,1979.3,2.50381493]
[1772830464114,2.50866839,1979.8,1979.3,2.50381493]
[1772830464910,1.26472306,1979.9,1979.4,1.24074213]
[1772830465089,0.002,1979.9,1979.4,1.24074213]
[1772830465682,0.002,1979.9,1979.5,2.50368731]
[1772830467203,0.002,1979.9,1979.6,1.24074213]
[1772830468009,0.002,1979.9,1979.6,2.50362352]
[1772830468205,0.002,1979.9,1979.7,1.24074213]
[1772830468411,0.002,1979.9,1979.4,1.24074213]
[1772830468412,1.24790549,1979.9,1979.4,1.24074213]
[1772830469019,0.002,1979.9,1979.4,1.24074213]
[1772830469926,0.002,1979.9,1979.7,2.50355972]
[1772830470098,0.002,1979.9,1979.7,1.24074213]
[1772830470300,1.24790549,1979.9,1979.3,2.50481138]
[1772830470617,1.24790549,1979.9,1979.4,1.24074213]
[1772830471925,2.51061588,1979.9,1979.5,1.26294518]
[1772830473308,2.51061588,1979.9,1979.4,2.50370209]
[1772830476414,0.002,1979.9,1979.5,1.26530247]
[1772830476622,0.002,1979.9,1979.5,2.52819622]
[1772830479626,1.30353142,1980.3,1979.5,3.79619622]
[1772830479932,1.30353142,1980.3,1979.4,1.26530247]
[1772830480102,1.30353142,1980.3,1979.5,0.001]
[1772830480294,1.30353142,1980.5,1979.6,1.26530247]
[1772830480495,1.26226669,1980.6,1979.6,1.26530247]
[1772830480700,0.002,1979.9,1979.6,1.26530247]
[1772830480896,0.002,1980.7,1979.6,1.26530247]
[1772830481207,0.002,1980.1,1979.8,1.26530247]
[1772830481413,2.56773895,1980.7,1980.0,1.26530247]
[1772830482226,1.26420753,1980.7,1980.0,1.26530247]
[1772830483214,1.30353142,1980.6,1980.0,1.26530247]
[1772830483707,0.002,1980.7,1980.2,1.26530247]
[1772830483906,1.2641846,1980.7,1980.2,1.26530247]
[1772830484429,1.30353142,1980.6,1980.0,2.52790929]
[1772830484622,1.30353142,1980.6,1980.1,1.26530247]
[1772830484825,1.2641846,1980.7,1980.1,1.26530247]
[1772830485027,2.56771602,1980.7,1980.1,1.26530247]
[1772830485829,2.56771602,1980.7,1980.2,1.26249873]
[1772830486015,2.56771602,1980.7,1980.2,2.5278012]
[1772830486421,1.30553142,1980.7,1980.2,2.5278012]
[1772830486624,0.002,1981.0,1980.2,2.5278012]
[1772830486625,0.002,1981.0,1980.4,1.26530247]
[1772830486929,0.002,1981.0,1980.5,1.26530247]
[1772830487529,1.26398989,1981.0,1980.5,1.26530247]
[1772830488037,0.002,1981.0,1980.5,2.52755115]
[1772830488707,1.30553142,1981.0,1980.4,1.26237123]
[1772830489107,1.30553142,1981.0,1980.4,2.5276737]
[1772830489724,1.30553142,1981.0,1980.2,1.26530247]
[1772830489927,1.30553142,1981.0,1980.0,1.26530247]
[1772830490108,1.30353142,1980.8,1980.0,2.52786817]
[1772830490436,2.56558402,1980.9,1980.1,1.26530247]
[1772830492439,1.30353142,1980.8,1980.0,1.26530247]
[1772830495947,1.26218003,1980.7,1980.1,2.41007129]
[1772830496519,2.61620023,1980.8,1980.2,1.1475088]
[1772830496718,1.2495925,1980.7,1980.2,1.1475088]
[1772830498240,1.26224376,1980.6,1980.2,1.1475088]
[1772830499152,1.2495925,1980.5,1979.9,1.1475088]
[1772830500217,1.26237123,1980.4,1979.5,1.1485088]
[1772830500454,2.51196373,1980.4,1979.5,1.1485088]
[1772830500952,1.2495925,1980.3,1979.5,1.1485088]
[1772830501334,1.2495925,1980.5,1979.5,1.1485088]
[1772830501531,1.31262903,1980.8,1979.5,1.1485088]
[1772830501923,1.31262903,1980.8,1979.7,1.18695894]
[1772830502324,0.0505,1980.8,1979.9,1.18695894]
[1772830502622,1.26196641,1981.1,1980.0,1.18695894]
[1772830503344,2.49354346,1981.1,1980.0,1.18695894]
[1772830503554,1.23157705,1981.0,1980.2,1.18695894]
[1772830504526,1.2620526,1980.9,1980.4,1.18695894]
[1772830504834,2.49361782,1981.0,1980.4,1.18695894]
[1772830505550,0.002,1980.9,1980.4,1.18695894]
[1772830506344,2.49334332,1981.4,1980.5,1.18695894]
[1772830506655,1.23157705,1981.3,1980.7,1.18695894]
[1772830509051,2.49341658,1981.3,1980.8,1.26211631]
[1772830509253,1.23157705,1981.2,1980.5,1.18695894]
[1772830509449,1.23157705,1981.2,1980.4,1.26237123]
[1772830509650,1.23157705,1981.2,1980.3,2.45034244]
[1772830511060,1.23157705,1981.0,1980.3,2.45034244]
[1772830511244,1.23157705,1981.0,1980.3,0.001]
[1772830511444,1.23157705,1981.0,1980.3,1.26343422]
[1772830512036,1.23157705,1981.0,1980.3,0.001]
[1772830512360,1.23157705,1981.0,1980.3,1.26343409]
[1772830512543,1.23157705,1981.0,1980.3,0.001]
[1772830512924,1.23157705,1980.8,1980.3,0.001]
[1772830514246,1.23157705,1980.8,1980.3,1.18795894]
[1772830514644,1.23157705,1980.8,1980.2,0.001]
[1772830514968,1.23157705,1980.6,1980.2,0.001]
[1772830517564,1.26230749,1980.5,1980.2,0.001]
[1772830517865,2.49388454,1980.5,1980.3,0.001]
[1772830518437,1.26230749,1980.5,1980.3,0.001]
[1772830519239,1.23157705,1980.8,1980.3,0.001]
[1772830519548,6.28007652,1980.8,1980.3,1.18795894]
[1772830519743,1.574,1980.9,1980.4,1.18695894]
[1772830519941,1.26405862,1980.9,1980.4,1.18695894]
[1772830520159,1.26405862,1980.9,1980.3,0.001]
[1772830520364,1.23157705,1980.8,1980.3,0.001]
[1772830520971,0.002,1980.9,1980.4,1.18695894]
[1772830521260,1.26406945,1980.9,1980.4,1.18695894]
[1772830522064,1.26406945,1980.9,1980.4,2.44931775]
[1772830522364,0.002,1980.9,1980.5,1.18695894]
[1772830523250,1.23357705,1980.9,1980.3,2.45035694]
[1772830523774,1.23357705,1980.9,1980.4,1.18695894]
[1772830524247,1.23357705,1980.9,1980.4,2.44928653]
[1772830524447,2.49565596,1980.9,1980.4,2.44928653]
[1772830525677,1.23157705,1979.2,1979.0,0.001]
[1772830525883,10.92561286,1980.5,1978.3,2.22542989]
[1772830525884,2.4329587,1979.1,1978.3,2.22542989]
[1772830526180,0.71236573,1978.1,1978.0,1.18805894]
[1772830526345,1.26350797,1978.7,1978.2,0.71236573]
[1772830526546,2.99527655,1978.6,1978.1,5.0542427]
[1772830526751,2.99527655,1978.5,1978.1,5.0542427]
[1772830526980,1.26350797,1978.7,1978.1,5.0542427]
[1772830527280,3.63576865,1979.1,1978.1,6.24120164]
[1772830527449,4.25230212,1979.0,1978.2,1.18695894]
[1772830527640,2.98903785,1978.9,1978.2,1.18695894]
[1772830527844,3.45724017,1978.7,1978.2,1.18695894]
[1772830528055,3.45724017,1978.7,1978.3,5.0542427]
[1772830529177,1.26320582,1979.1,1978.4,1.18695894]
[1772830529478,1.26320582,1979.1,1978.4,2.8890553]
[1772830529479,2.98183842,1979.0,1978.4,2.8890553]
[1772830531085,6.28415703,1979.2,1978.4,4.15265958]
[1772830531086,2.49474024,1979.2,1978.4,4.15265958]
[1772830531264,2.97802355,1979.1,1978.4,4.15265958]
[1772830532189,2.49474024,1979.2,1978.4,4.15265958]
[1772830533152,1.26316319,1979.2,1978.4,4.15265958]
[1772830533355,1.527844,1979.1,1978.4,4.15265958]
[1772830534484,1.527844,1979.1,1978.4,2.8890553]
[1772830534783,1.527844,1979.1,1978.4,1.70209636]
[1772830535181,1.26326427,1979.0,1978.4,1.70209636]
[1772830535380,2.79110827,1979.0,1978.4,1.70209636]
[1772830538192,1.527844,1978.9,1978.4,1.70209636]
[1772830538494,1.527844,1978.9,1978.3,1.264]
[1772830538663,1.527844,1978.9,1978.4,1.70209636]
[1772830539358,2.79123595,1978.8,1978.4,1.70209636]
[1772830541693,2.79123595,1978.8,1978.2,1.55571897]
[1772830543479,2.79123595,1978.8,1978.3,0.0011]
[1772830545998,1.26339195,1978.8,1978.3,1.55581897]
[1772830547704,2.98492818,1978.7,1978.3,1.55581897]
[1772830548110,1.26348005,1978.7,1978.3,1.55581897]
[1772830548703,4.64752618,1978.9,1978.4,1.55471897]
[1772830548885,2.98612789,1978.8,1978.4,1.55471897]
[1772830549080,2.98612789,1978.7,1978.4,1.55471897]
[1772830549408,4.64752618,1978.9,1978.4,1.55471897]
[1772830549692,2.98725167,1978.8,1978.4,1.55471897]
[1772830550099,2.98725167,1978.7,1978.4,1.55471897]
[1772830550296,2.9900805,1978.6,1978.4,1.55471897]
[1772830550602,1.26339616,1978.8,1978.4,1.55471897]
[1772830550771,2.9908663,1978.7,1978.4,1.55471897]
[1772830551098,2.9908663,1978.6,1978.4,1.55471897]
[1772830551300,1.26339616,1978.8,1978.4,1.55471897]
[1772830551499,2.994252,1978.7,1978.4,1.55471897]
[1772830551670,2.994252,1978.6,1978.4,1.55471897]
[1772830551872,1.26339616,1978.8,1978.4,1.55471897]
[1772830552072,2.99428627,1978.7,1978.4,1.55471897]
[1772830552402,2.99428627,1978.6,1978.4,1.55471897]
[1772830552700,2.99428627,1978.5,1978.4,1.55471897]
[1772830552902,2.99428627,1978.5,1978.4,2.81836636]
[1772830553099,2.4041916,1978.7,1978.4,2.81836636]
[1772830553302,1.26339616,1978.8,1978.4,2.81836636]
[1772830553303,3.66758776,1978.8,1978.4,1.55471897]
[1772830554094,2.4041916,1978.7,1978.4,1.55471897]
[1772830554503,1.26339616,1978.8,1978.4,1.55471897]
[1772830555393,2.79124016,1978.8,1978.4,1.55471897]
[1772830555700,2.79124016,1978.8,1978.5,0.0011]
[1772830555903,2.79124016,1978.8,1978.4,1.55471897]
[1772830556076,2.79224016,1978.8,1978.4,1.55471897]
[1772830556277,2.79224016,1978.8,1978.4,1.55581897]
[1772830557222,1.528844,1978.8,1978.4,1.55581897]
[1772830557403,1.60723814,1978.7,1978.4,1.26474243]
[1772830557588,1.26440365,1978.8,1978.5,1.63988815]
[1772830558622,2.87164179,1978.8,1978.4,1.64098815]
[1772830559905,1.60723814,1978.7,1978.4,0.0011]
[1772830560477,1.60723814,1978.5,1978.4,0.0011]
[1772830560987,1.60723814,1978.7,1978.4,0.0011]
[1772830561186,1.26441702,1978.8,1978.4,1.64098815]
[1772830561507,2.87165516,1978.8,1978.4,1.64098815]
[1772830561675,1.60823814,1978.8,1978.4,1.64098815]
[1772830561880,2.871641,1978.8,1978.4,1.64098815]
[1772830563207,1.64391711,1978.7,1978.4,0.0011]
[1772830564510,2.90831997,1978.8,1978.4,1.63197201]
[1772830564892,2.90831997,1978.8,1978.5,1.63087201]
[1772830564893,0.001,1978.8,1978.5,1.63087201]
[1772830565208,0.001,1978.8,1978.7,1.63087201]
[1772830565506,0.001,1978.8,1978.5,2.89445553]
[1772830565708,1.64491711,1978.8,1978.4,1.26471676]
[1772830566400,1.64491711,1978.8,1978.4,2.89558877]
[1772830567713,1.64391711,1979.4,1979.0,1.63087201]
[1772830567915,1.64391711,1979.4,1978.4,1.26471676]
[1772830567916,1.64391711,1979.3,1978.7,1.271]
[1772830569026,1.64391711,1979.3,1978.7,2.90187201]
[1772830569327,1.64391711,1979.3,1978.7,1.271]
[1772830570205,1.64391711,1979.1,1978.7,1.221]
[1772830572004,2.90699604,1979.3,1978.8,1.63087201]
[1772830572528,1.64391711,1979.2,1978.7,2.48443362]
[1772830573113,1.64391711,1979.2,1978.7,1.221]
[1772830574926,1.64391711,1979.0,1978.7,1.221]
[1772830575319,1.64391711,1979.0,1978.5,1.26465986]
[1772830575320,1.64391711,1979.0,1978.5,0.0011]
[1772830577017,2.90724522,1978.9,1978.5,0.0011]
[1772830577320,2.90724522,1978.9,1978.5,1.63197201]
[1772830578121,1.64391711,1979.2,1978.5,1.63197201]
[1772830580799,1.64391711,1979.0,1978.5,2.89550146]
[1772830582030,1.64391711,1979.0,1978.5,1.63197201]
[1772830582202,1.64391711,1979.0,1978.5,0.0011]
[1772830582732,2.90724522,1978.9,1978.5,0.0011]
[1772830584338,1.64391711,1978.8,1978.5,0.0011]
[1772830584834,1.64391711,1978.8,1978.3,1.2731]
[1772830584835,1.64391711,1978.6,1978.3,0.0011]
[1772830586435,1.64391711,1978.6,1978.0,0.0011]
[1772830587121,2.90750063,1978.5,1978.0,1.63197201]
[1772830587921,1.26355777,1978.6,1978.0,1.63197201]
[1772830590339,1.26355777,1978.6,1978.1,1.63087201]
[1772830590545,2.90747488,1978.6,1978.1,1.63087201]
[1772830591235,2.90733586,1978.8,1978.1,1.63087201]
[1772830591439,1.26341875,1978.8,1978.1,1.63087201]
[1772830592022,2.94976883,1978.8,1978.1,1.63087201]
[1772830592219,1.26344769,1978.8,1978.1,1.63087201]
[1772830592436,6.73981757,1978.9,1978.3,1.56933785]
[1772830593153,1.26326846,1979.0,1978.4,1.56933785]
[1772830593446,2.94961854,1979.0,1978.4,1.56933785]
[1772830593648,1.68635008,1978.9,1978.4,1.56933785]
[1772830593824,1.68635008,1978.9,1978.2,2.83421299]
[1772830594020,1.68635008,1978.9,1978.2,4.10821299]
[1772830594644,2.94974203,1978.8,1978.2,2.83421299]
[1772830594823,1.26339195,1978.8,1978.2,4.10821299]
[1772830595024,1.68635008,1978.7,1978.2,4.10821299]
[1772830595533,1.68635008,1978.7,1978.2,2.84443785]
[1772830595920,1.68635008,1978.7,1978.2,2.53884389]
[1772830596122,1.68635008,1978.7,1978.2,0.0011]
[1772830596320,1.68635008,1978.7,1978.2,2.83420468]
[1772830596546,6.73940876,1979.0,1978.3,1.56933785]
[1772830596714,1.68635008,1978.9,1978.4,1.56933785]
[1772830598953,1.26339195,1978.8,1978.4,1.56933785]
[1772830599142,1.26339195,1978.8,1978.4,2.83298221]
[1772830599459,1.26339195,1978.8,1978.4,1.56933785]
[1772830600252,1.26331063,1979.0,1978.5,1.56933785]
[1772830600425,2.94966071,1979.0,1978.5,1.56933785]
[1772830600825,1.68635008,1978.9,1978.5,1.56933785]
[1772830603058,1.26339195,1978.8,1978.5,1.56933785]
[1772830604057,2.94974203,1978.8,1978.5,1.56933785]
[1772830604468,1.68635008,1978.7,1978.3,1.57043785]
[1772830605353,1.68635008,1978.6,1978.3,1.57043785]
[1772830606069,1.26351301,1978.7,1978.3,1.57043785]
[1772830606564,1.26351301,1978.7,1978.4,1.56933785]
[1772830606769,1.31552986,1978.8,1978.4,1.56933785]
[1772830607654,0.0521,1978.8,1978.5,1.56933785]
[1772830607861,1.31550899,1978.8,1978.5,1.56933785]
[1772830610065,3.00185907,1978.8,1978.3,1.57043785]
[1772830610467,1.68635008,1978.7,1978.3,1.57043785]
[1772830610680,1.68635008,1978.7,1978.3,0.0011]
[1772830611357,1.31550899,1978.8,1978.3,1.57043785]
[1772830611548,3.00185907,1978.8,1978.3,1.57043785]
[1772830611743,1.68635008,1978.7,1978.3,0.0011]
[1772830612060,1.26351966,1978.6,1978.3,0.0011]
[1772830612657,1.26351966,1978.6,1978.3,1.57043785]
[1772830613666,1.26349863,1978.7,1978.4,1.56933785]
[1772830613867,1.31549195,1978.8,1978.4,1.56933785]
[1772830615574,3.00184203,1978.8,1978.4,1.56933785]
[1772830615947,0.001,1978.7,1978.4,1.56933785]
[1772830620672,1.6494919,1978.7,1978.3,0.0011]
[1772830620875,1.26351966,1978.6,1978.3,0.0011]
[1772830621171,1.26351966,1978.6,1978.3,1.61343471]
[1772830622548,0.001,1978.7,1978.3,1.61343471]
[1772830622749,1.26445765,1978.7,1978.3,1.61343471]
[1772830622973,1.26445765,1978.7,1978.4,1.63710346]
[1772830622974,0.001,1978.7,1978.4,1.63710346]
[1772830626093,1.65164123,1978.7,1978.4,1.63710346]
[1772830627079,1.65164123,1978.7,1978.3,0.0011]
[1772830627389,1.70274123,1978.7,1978.3,0.0011]
[1772830627554,0.001,1978.6,1978.3,1.63820346]
[1772830627882,0.001,1978.6,1978.4,1.63820346]
[1772830628791,0.001,1978.6,1978.5,1.63710346]
[1772830630288,0.001,1978.6,1978.5,2.91910346]
[1772830630481,0.001,1978.6,1978.5,4.18268698]
[1772830630991,0.001,1978.8,1978.7,1.63710346]
[1772830631877,0.001,1978.8,1978.5,4.18268698]
[1772830632084,0.001,1978.8,1978.6,1.63710346]
[1772830632285,0.001,1978.8,1978.7,2.90055926]
[1772830632483,0.001,1979.1,1978.8,1.63710346]
[1772830632788,5.05169023,1979.6,1978.9,1.63710346]
[1772830632789,1.26290429,1979.6,1978.9,1.63710346]
[1772830633000,2.00720555,1980.1,1979.0,1.63710346]
[1772830633165,1.26243098,1980.4,1979.2,1.63710346]
[1772830633364,1.65064123,1980.3,1979.4,1.63710346]
[1772830634204,1.65064123,1980.1,1979.4,1.63710346]